[Event "Titled Tuesday Blitz March 15 Early 2022"]
[White "Gontcharov, Vladislav"]
[Black "Nagy, Gabor"]
[WhiteFideId "4123492"]
[BlackFideId "737119"]
[WhiteElo "2503"]
[BlackElo "2534"]
[Result "0-1"]
[Round "10"]
[TimeControl "180+1"]
[Date "2022.03.15"]
[WhiteClock "0:00:01"]
[BlackClock "0:01:17"]

1. e4 {[%clk 0:02:50]}  e5 {[%clk 0:02:54]} 2. Nf3 {[%clk 0:02:49]}  Nc6 {[%clk 0:02:54]} 3. Bb5 {[%clk 0:02:49]}  a6 {[%clk 0:02:54]} 4. Ba4 {[%clk 0:02:49]}  f5 {[%clk 0:02:54]} 5. d3 {[%clk 0:02:34]}  fxe4 {[%clk 0:02:51]} 6. dxe4 {[%clk 0:02:30]}  Nf6 {[%clk 0:02:51]} 7. O-O {[%clk 0:02:30]}  d6 {[%clk 0:02:50]} 8. Nc3 {[%clk 0:02:21]}  Be7 {[%clk 0:02:49]} 9. h3 {[%clk 0:02:17]}  O-O {[%clk 0:02:48]} 10. Bb3+ {[%clk 0:02:15]}  Kh8 {[%clk 0:02:48]} 11. Ng5 {[%clk 0:02:16]}  Qe8 {[%clk 0:02:48]} 12. Be3 {[%clk 0:02:12]}  Bd8 {[%clk 0:02:44]} 13. Qd2 {[%clk 0:01:44]}  Na5 {[%clk 0:02:39]} 14. Rad1 {[%clk 0:01:20]}  Nxb3 {[%clk 0:02:37]} 15. axb3 {[%clk 0:01:21]}  h6 {[%clk 0:02:34]} 16. Nf3 {[%clk 0:01:21]}  Qg6 {[%clk 0:02:29]} 17. Kh2 {[%clk 0:01:20]}  Nxe4 {[%clk 0:02:27]} 18. Nxe4 {[%clk 0:01:18]}  Qxe4 {[%clk 0:02:28]} 19. Rfe1 {[%clk 0:00:46]}  Rxf3 {[%clk 0:02:15]} 20. Bxh6 {[%clk 0:00:46]}  Qh4 {[%clk 0:02:11]} 21. Bxg7+ {[%clk 0:00:43]}  Kxg7 {[%clk 0:02:12]} 22. gxf3 {[%clk 0:00:38]}  Qxh3+ {[%clk 0:02:08]} 23. Kg1 {[%clk 0:00:38]}  Bf5 {[%clk 0:02:05]} 24. Re3 {[%clk 0:00:31]}  Bh4 {[%clk 0:01:58]} 25. f4 {[%clk 0:00:23]}  Qg4+ {[%clk 0:01:57]} 26. Kf1 {[%clk 0:00:23]}  Qxf4 {[%clk 0:01:56]} 27. Rc3 {[%clk 0:00:19]}  Rc8 {[%clk 0:01:37]} 28. Qxf4 {[%clk 0:00:16]}  exf4 {[%clk 0:01:37]} 29. Rc4 {[%clk 0:00:16]}  Bg5 {[%clk 0:01:37]} 30. f3 {[%clk 0:00:16]}  Kf6 {[%clk 0:01:37]} 31. Kf2 {[%clk 0:00:15]}  Be6 {[%clk 0:01:37]} 32. Rcd4 {[%clk 0:00:14]}  d5 {[%clk 0:01:37]} 33. Rh1 {[%clk 0:00:14]}  c6 {[%clk 0:01:37]} 34. Rh7 {[%clk 0:00:13]}  b5 {[%clk 0:01:35]} 35. Rd2 {[%clk 0:00:13]}  Bf5 {[%clk 0:01:34]} 36. Rb7 {[%clk 0:00:13]}  Bh4+ {[%clk 0:01:35]} 37. Kf1 {[%clk 0:00:12]}  Bh3+ {[%clk 0:01:33]} 38. Ke2 {[%clk 0:00:12]}  Re8+ {[%clk 0:01:33]} 39. Kd3 {[%clk 0:00:12]}  Bf5+ {[%clk 0:01:31]} 40. Kd4 {[%clk 0:00:12]}  Be1 {[%clk 0:01:26]} 41. Rh2 {[%clk 0:00:11]}  Re3 {[%clk 0:01:25]} 42. Kc5 {[%clk 0:00:10]}  Rxf3 {[%clk 0:01:26]} 43. Kxc6 {[%clk 0:00:10]}  Bg3 {[%clk 0:01:23]} 44. Rh6+ {[%clk 0:00:09]}  Kg5 {[%clk 0:01:24]} 45. Rh8 {[%clk 0:00:09]}  Rf2 {[%clk 0:01:22]} 46. c3 {[%clk 0:00:10]}  Be4 {[%clk 0:01:20]} 47. Kc5 {[%clk 0:00:10]}  Rxb2 {[%clk 0:01:19]} 48. Rg7+ {[%clk 0:00:10]}  Kf6 {[%clk 0:01:19]} 49. Rgg8 {[%clk 0:00:10]}  f3 {[%clk 0:01:17]} 50. Rf8+ {[%clk 0:00:09]}  Kg5 {[%clk 0:01:17]} 51. Rhg8+ {[%clk 0:00:08]}  Bg6 {[%clk 0:01:17]} 52. Kxd5 {[%clk 0:00:03]}  Rd2+ {[%clk 0:01:16]} 53. Kc5 {[%clk 0:00:02]}  f2 {[%clk 0:01:16]} 54. Kb6 {[%clk 0:00:02]}  Rd6+ {[%clk 0:01:16]} 55. Ka5 {[%clk 0:00:01]}  Rf6 {[%clk 0:01:16]} 56. Rxf6 {[%clk 0:00:01]}  Kxf6 {[%clk 0:01:17]} 57. Rf8+ {[%clk 0:00:01]}  Bf7 {[%clk 0:01:17]} 0-1


[Site "https://www.chess.com"]

[Event "Titled Tuesday Blitz March 15 Early 2022"]
[White "Goryachkina, Aleksandra"]
[Black "Baches Garcia, Guillermo"]
[WhiteFideId "4147103"]
[BlackFideId "2209764"]
[WhiteElo "2426"]
[BlackElo "2444"]
[Result "1/2-1/2"]
[Round "10"]
[TimeControl "180+1"]
[Date "2022.03.15"]
[WhiteClock "0:00:25"]
[BlackClock "0:00:20"]

1. e4 {[%clk 0:02:59]}  c5 {[%clk 0:02:59]} 2. Nf3 {[%clk 0:03:00]}  d6 {[%clk 0:03:00]} 3. Bb5+ {[%clk 0:02:55]}  Bd7 {[%clk 0:02:59]} 4. c4 {[%clk 0:02:53]}  Nf6 {[%clk 0:02:56]} 5. Nc3 {[%clk 0:02:52]}  g6 {[%clk 0:02:55]} 6. O-O {[%clk 0:02:52]}  Bg7 {[%clk 0:02:55]} 7. d4 {[%clk 0:02:52]}  cxd4 {[%clk 0:02:55]} 8. Nxd4 {[%clk 0:02:52]}  O-O {[%clk 0:02:54]} 9. h3 {[%clk 0:02:31]}  a6 {[%clk 0:02:50]} 10. Bxd7 {[%clk 0:02:31]}  Nbxd7 {[%clk 0:02:50]} 11. b3 {[%clk 0:02:24]}  Rc8 {[%clk 0:02:38]} 12. Bb2 {[%clk 0:02:24]}  e6 {[%clk 0:02:28]} 13. Re1 {[%clk 0:02:19]}  Qa5 {[%clk 0:02:19]} 14. Rc1 {[%clk 0:02:16]}  Rfd8 {[%clk 0:02:14]} 15. Qe2 {[%clk 0:01:51]}  Qh5 {[%clk 0:02:08]} 16. Nf3 {[%clk 0:01:42]}  Qa5 {[%clk 0:01:23]} 17. Red1 {[%clk 0:01:33]}  Bh6 {[%clk 0:01:19]} 18. Rc2 {[%clk 0:01:32]}  Ne5 {[%clk 0:01:06]} 19. Nb1 {[%clk 0:00:57]}  Nh5 {[%clk 0:00:45]} 20. Bc3 {[%clk 0:00:48]}  Qc7 {[%clk 0:00:36]} 21. Bd2 {[%clk 0:00:38]}  Bg7 {[%clk 0:00:31]} 22. Be3 {[%clk 0:00:33]}  Nd7 {[%clk 0:00:23]} 23. Rcd2 {[%clk 0:00:30]}  Nc5 {[%clk 0:00:21]} 24. Bd4 {[%clk 0:00:25]}  Nf6 {[%clk 0:00:20]} 1/2-1/2


[Site "https://www.chess.com"]

[Event "Titled Tuesday Blitz March 15 Early 2022"]
[White "Hernandez Jimenez, Alexander Andres"]
[Black "Quirke, Jeffrey"]
[WhiteFideId "3900452"]
[BlackFideId "2013029"]
[WhiteElo "2082"]
[BlackElo "2230"]
[Result "0-1"]
[Round "10"]
[TimeControl "180+1"]
[Date "2022.03.15"]
[WhiteClock "0:00:36"]
[BlackClock "0:00:39"]

1. e4 {[%clk 0:03:00]}  c5 {[%clk 0:02:59]} 2. Nf3 {[%clk 0:03:00]}  e6 {[%clk 0:02:59]} 3. d4 {[%clk 0:03:01]}  cxd4 {[%clk 0:03:00]} 4. Nxd4 {[%clk 0:03:01]}  a6 {[%clk 0:03:00]} 5. c4 {[%clk 0:03:00]}  Nf6 {[%clk 0:02:59]} 6. Nc3 {[%clk 0:03:01]}  Bb4 {[%clk 0:03:00]} 7. Bd3 {[%clk 0:02:58]}  Nc6 {[%clk 0:02:59]} 8. Nxc6 {[%clk 0:02:52]}  dxc6 {[%clk 0:03:00]} 9. O-O {[%clk 0:02:45]}  e5 {[%clk 0:03:00]} 10. Bg5 {[%clk 0:02:36]}  O-O {[%clk 0:02:53]} 11. Ne2 {[%clk 0:02:34]}  Be7 {[%clk 0:02:52]} 12. Ng3 {[%clk 0:02:33]}  h6 {[%clk 0:02:24]} 13. Bxf6 {[%clk 0:02:32]}  Bxf6 {[%clk 0:02:23]} 14. Nf5 {[%clk 0:02:31]}  Be6 {[%clk 0:02:21]} 15. Qe2 {[%clk 0:02:26]}  Qc7 {[%clk 0:02:19]} 16. Rad1 {[%clk 0:02:22]}  Rfd8 {[%clk 0:02:16]} 17. Bc2 {[%clk 0:02:14]}  a5 {[%clk 0:01:56]} 18. Rxd8+ {[%clk 0:02:11]}  Rxd8 {[%clk 0:01:55]} 19. b3 {[%clk 0:02:09]}  Qb6 {[%clk 0:01:41]} 20. Rd1 {[%clk 0:01:55]}  Bxf5 {[%clk 0:01:41]} 21. Rxd8+ {[%clk 0:01:49]}  Qxd8 {[%clk 0:01:39]} 22. exf5 {[%clk 0:01:49]}  Qd4 {[%clk 0:01:38]} 23. a4 {[%clk 0:01:40]}  Kf8 {[%clk 0:01:33]} 24. g3 {[%clk 0:01:39]}  Ke7 {[%clk 0:01:32]} 25. Kg2 {[%clk 0:01:39]}  Kd6 {[%clk 0:01:31]} 26. h4 {[%clk 0:01:35]}  Kc5 {[%clk 0:01:24]} 27. Qe4 {[%clk 0:01:21]}  Qxe4+ {[%clk 0:01:18]} 28. Bxe4 {[%clk 0:01:21]}  Kb4 {[%clk 0:01:19]} 29. Bc2 {[%clk 0:01:21]}  Kc3 {[%clk 0:01:17]} 30. Bd1 {[%clk 0:01:20]}  Kd2 {[%clk 0:01:17]} 31. Bf3 {[%clk 0:01:14]}  Kc3 {[%clk 0:01:17]} 32. Bd1 {[%clk 0:01:13]}  e4 {[%clk 0:01:17]} 33. Kf1 {[%clk 0:01:10]}  Kd2 {[%clk 0:01:14]} 34. Be2 {[%clk 0:01:10]}  Bd4 {[%clk 0:01:06]} 35. f3 {[%clk 0:01:08]}  e3 {[%clk 0:01:04]} 36. g4 {[%clk 0:01:04]}  f6 {[%clk 0:01:03]} 37. f4 {[%clk 0:01:04]}  Bc5 {[%clk 0:00:51]} 38. g5 {[%clk 0:01:03]}  Bd6 {[%clk 0:00:50]} 39. gxf6 {[%clk 0:00:55]}  gxf6 {[%clk 0:00:50]} 40. h5 {[%clk 0:00:51]}  Bxf4 {[%clk 0:00:49]} 41. Bf3 {[%clk 0:00:52]}  Kc3 {[%clk 0:00:45]} 42. Bd1 {[%clk 0:00:51]}  Kd2 {[%clk 0:00:45]} 43. Bf3 {[%clk 0:00:51]}  Kc2 {[%clk 0:00:43]} 44. Ke2 {[%clk 0:00:42]}  Kxb3 {[%clk 0:00:42]} 45. Kd3 {[%clk 0:00:42]}  Kxa4 {[%clk 0:00:40]} 46. Ke4 {[%clk 0:00:36]}  Bg5 {[%clk 0:00:39]} 47. Kd4 {[%clk 0:00:36]}  Kb4 {[%clk 0:00:39]} 0-1


[Site "https://www.chess.com"]

[Event "Titled Tuesday Blitz March 15 Early 2022"]
[White "Indjic, Aleksandar"]
[Black "Shuvalova, Polina"]
[WhiteFideId "911925"]
[BlackFideId "24171760"]
[WhiteElo "2616"]
[BlackElo "2355"]
[Result "1-0"]
[Round "10"]
[TimeControl "180+1"]
[Date "2022.03.15"]
[WhiteClock "0:01:24"]
[BlackClock "0:00:03"]

1. d4 {[%clk 0:02:57]}  Nf6 {[%clk 0:02:59]} 2. Bg5 {[%clk 0:02:55]}  e6 {[%clk 0:02:51]} 3. e4 {[%clk 0:02:54]}  h6 {[%clk 0:02:51]} 4. Bxf6 {[%clk 0:02:54]}  Qxf6 {[%clk 0:02:52]} 5. c3 {[%clk 0:02:53]}  c5 {[%clk 0:02:51]} 6. d5 {[%clk 0:02:51]}  exd5 {[%clk 0:02:45]} 7. Qxd5 {[%clk 0:02:50]}  Nc6 {[%clk 0:02:43]} 8. Nf3 {[%clk 0:02:49]}  d6 {[%clk 0:02:37]} 9. Na3 {[%clk 0:02:47]}  Be6 {[%clk 0:02:36]} 10. Qd2 {[%clk 0:02:45]}  Be7 {[%clk 0:02:34]} 11. Bc4 {[%clk 0:02:43]}  O-O {[%clk 0:02:31]} 12. O-O {[%clk 0:02:42]}  Rad8 {[%clk 0:02:15]} 13. Rfe1 {[%clk 0:02:39]}  Ne5 {[%clk 0:02:05]} 14. Nxe5 {[%clk 0:02:38]}  dxe5 {[%clk 0:02:01]} 15. Qe2 {[%clk 0:02:39]}  Bc8 {[%clk 0:01:34]} 16. Nc2 {[%clk 0:02:35]}  a6 {[%clk 0:01:29]} 17. a4 {[%clk 0:02:34]}  Qg6 {[%clk 0:01:21]} 18. Bd5 {[%clk 0:02:31]}  Bh3 {[%clk 0:01:12]} 19. f3 {[%clk 0:02:29]}  Bc8 {[%clk 0:01:08]} 20. Ne3 {[%clk 0:02:28]}  Bg5 {[%clk 0:01:05]} 21. Nc4 {[%clk 0:02:28]}  Rfe8 {[%clk 0:00:49]} 22. a5 {[%clk 0:02:26]}  h5 {[%clk 0:00:49]} 23. Nb6 {[%clk 0:02:23]}  h4 {[%clk 0:00:48]} 24. Rad1 {[%clk 0:02:22]}  Bf4 {[%clk 0:00:46]} 25. Qf2 {[%clk 0:02:18]}  Qg5 {[%clk 0:00:43]} 26. Kh1 {[%clk 0:02:12]}  g6 {[%clk 0:00:39]} 27. Nxc8 {[%clk 0:01:55]}  Rxc8 {[%clk 0:00:39]} 28. Bxb7 {[%clk 0:01:55]}  Rb8 {[%clk 0:00:39]} 29. Bxa6 {[%clk 0:01:52]}  Ra8 {[%clk 0:00:29]} 30. Rd6 {[%clk 0:01:44]}  Kg7 {[%clk 0:00:27]} 31. Red1 {[%clk 0:01:41]}  Rh8 {[%clk 0:00:26]} 32. Bc4 {[%clk 0:01:36]}  Bg3 {[%clk 0:00:25]} 33. Qd2 {[%clk 0:01:35]}  Bf4 {[%clk 0:00:23]} 34. Qd5 {[%clk 0:01:34]}  Ra7 {[%clk 0:00:18]} 35. Rd7 {[%clk 0:01:33]}  Rxd7 {[%clk 0:00:19]} 36. Qxd7 {[%clk 0:01:34]}  Bxh2 {[%clk 0:00:17]} 37. Qxf7+ {[%clk 0:01:31]}  Kh6 {[%clk 0:00:18]} 38. Rd7 {[%clk 0:01:28]}  Qc1+ {[%clk 0:00:04]} 39. Kxh2 {[%clk 0:01:26]}  h3 {[%clk 0:00:02]} 40. Qg7+ {[%clk 0:01:25]}  Kg5 {[%clk 0:00:02]} 41. Qxe5+ {[%clk 0:01:25]}  Kh6 {[%clk 0:00:02]} 42. Qxh8+ {[%clk 0:01:24]}  Kg5 {[%clk 0:00:03]} 43. Qe5+ {[%clk 0:01:24]} 1-0


[Site "https://www.chess.com"]

[Event "Titled Tuesday Blitz March 15 Early 2022"]
[White "Kanyamarala, Tarun"]
[Black "Guseva, Marina"]
[WhiteFideId "45004714"]
[BlackFideId "4149351"]
[WhiteElo "2075"]
[BlackElo "2160"]
[Result "0-1"]
[Round "10"]
[TimeControl "180+1"]
[Date "2022.03.15"]
[WhiteClock "0:00:03"]
[BlackClock "0:00:03"]

1. Nf3 {[%clk 0:03:00]}  d5 {[%clk 0:02:54]} 2. g3 {[%clk 0:03:01]}  Nf6 {[%clk 0:02:53]} 3. Bg2 {[%clk 0:03:01]}  c6 {[%clk 0:02:51]} 4. d3 {[%clk 0:03:00]}  Bf5 {[%clk 0:02:50]} 5. b3 {[%clk 0:02:56]}  e6 {[%clk 0:02:47]} 6. Bb2 {[%clk 0:02:57]}  Nbd7 {[%clk 0:02:46]} 7. Nbd2 {[%clk 0:02:55]}  h6 {[%clk 0:02:45]} 8. O-O {[%clk 0:02:52]}  Be7 {[%clk 0:02:43]} 9. e4 {[%clk 0:02:53]}  dxe4 {[%clk 0:02:35]} 10. dxe4 {[%clk 0:02:47]}  Nxe4 {[%clk 0:02:33]} 11. Nxe4 {[%clk 0:02:42]}  Bxe4 {[%clk 0:02:32]} 12. Bxg7 {[%clk 0:02:43]}  Rh7 {[%clk 0:02:28]} 13. Bb2 {[%clk 0:02:42]}  Bf6 {[%clk 0:02:09]} 14. Bxf6 {[%clk 0:02:37]}  Qxf6 {[%clk 0:02:07]} 15. Qe2 {[%clk 0:02:35]}  Bxf3 {[%clk 0:01:48]} 16. Bxf3 {[%clk 0:02:34]}  O-O-O {[%clk 0:01:48]} 17. a4 {[%clk 0:02:29]}  h5 {[%clk 0:01:46]} 18. a5 {[%clk 0:02:29]}  Ne5 {[%clk 0:01:20]} 19. Be4 {[%clk 0:02:26]}  Rg7 {[%clk 0:01:13]} 20. a6 {[%clk 0:02:23]}  b6 {[%clk 0:01:08]} 21. f4 {[%clk 0:02:23]}  Ng4 {[%clk 0:00:57]} 22. Bxc6 {[%clk 0:02:21]}  Qd4+ {[%clk 0:00:55]} 23. Kh1 {[%clk 0:02:20]}  h4 {[%clk 0:00:52]} 24. Bf3 {[%clk 0:01:33]}  Ne3 {[%clk 0:00:37]} 25. c3 {[%clk 0:01:25]}  Qd2 {[%clk 0:00:29]} 26. Rf2 {[%clk 0:00:56]}  Qxc3 {[%clk 0:00:16]} 27. Rff1 {[%clk 0:00:50]}  Rd2 {[%clk 0:00:12]} 28. Rac1 {[%clk 0:00:50]}  Nc2 {[%clk 0:00:11]} 29. Qe4 {[%clk 0:00:42]}  hxg3 {[%clk 0:00:10]} 30. hxg3 {[%clk 0:00:17]}  Rxg3 {[%clk 0:00:07]} 31. Qa8+ {[%clk 0:00:07]}  Kd7 {[%clk 0:00:06]} 32. Qxa7+ {[%clk 0:00:06]}  Ke8 {[%clk 0:00:05]} 33. Qb8+ {[%clk 0:00:06]}  Ke7 {[%clk 0:00:05]} 34. Qb7+ {[%clk 0:00:04]}  Kf6 {[%clk 0:00:04]} 35. a7 {[%clk 0:00:03]}  Rh3+ {[%clk 0:00:03]} 36. Kg1 {[%clk 0:00:03]}  Qd4+ {[%clk 0:00:03]} 0-1


[Site "https://www.chess.com"]

[Event "Titled Tuesday Blitz March 15 Early 2022"]
[White "Matinian, Nikita"]
[Black "Coto Mederos, Michel"]
[WhiteFideId "24129100"]
[BlackFideId "3508528"]
[WhiteElo "2422"]
[BlackElo "2427"]
[Result "1-0"]
[Round "10"]
[TimeControl "180+1"]
[Date "2022.03.15"]
[WhiteClock "0:01:50"]
[BlackClock "0:00:05"]

1. e4 {[%clk 0:02:56]}  e5 {[%clk 0:02:57]} 2. Nf3 {[%clk 0:02:55]}  Nf6 {[%clk 0:02:56]} 3. Nxe5 {[%clk 0:02:54]}  d6 {[%clk 0:02:54]} 4. Nf3 {[%clk 0:02:54]}  Nxe4 {[%clk 0:02:52]} 5. Qe2 {[%clk 0:02:55]}  Qe7 {[%clk 0:02:52]} 6. d3 {[%clk 0:02:56]}  Nf6 {[%clk 0:02:52]} 7. Bg5 {[%clk 0:02:56]}  Qxe2+ {[%clk 0:02:42]} 8. Bxe2 {[%clk 0:02:57]}  Be7 {[%clk 0:02:43]} 9. Nc3 {[%clk 0:02:58]}  Bf5 {[%clk 0:02:25]} 10. Nb5 {[%clk 0:02:57]}  Na6 {[%clk 0:02:22]} 11. O-O-O {[%clk 0:02:51]}  O-O {[%clk 0:02:16]} 12. Rde1 {[%clk 0:02:51]}  Rfe8 {[%clk 0:02:13]} 13. Nfd4 {[%clk 0:02:48]}  Bd7 {[%clk 0:02:09]} 14. Bf3 {[%clk 0:02:48]}  c6 {[%clk 0:01:22]} 15. Nc3 {[%clk 0:02:35]}  Nc7 {[%clk 0:01:16]} 16. h4 {[%clk 0:02:34]}  h6 {[%clk 0:01:15]} 17. Bd2 {[%clk 0:02:34]}  Bf8 {[%clk 0:01:12]} 18. Reg1 {[%clk 0:02:33]}  c5 {[%clk 0:01:10]} 19. Nb3 {[%clk 0:02:26]}  Rab8 {[%clk 0:01:02]} 20. g4 {[%clk 0:02:26]}  g6 {[%clk 0:00:31]} 21. g5 {[%clk 0:02:24]}  hxg5 {[%clk 0:00:32]} 22. hxg5 {[%clk 0:02:24]}  Nh7 {[%clk 0:00:31]} 23. Ne4 {[%clk 0:02:21]}  Ne6 {[%clk 0:00:21]} 24. Rxh7 {[%clk 0:02:21]}  Kxh7 {[%clk 0:00:19]} 25. Nf6+ {[%clk 0:02:20]}  Kg7 {[%clk 0:00:20]} 26. Nxd7 {[%clk 0:02:17]}  Be7 {[%clk 0:00:19]} 27. Bc3+ {[%clk 0:02:17]}  Kg8 {[%clk 0:00:16]} 28. Nf6+ {[%clk 0:02:10]}  Bxf6 {[%clk 0:00:16]} 29. Bxf6 {[%clk 0:02:11]}  Nf8 {[%clk 0:00:08]} 30. Na5 {[%clk 0:02:07]}  Nh7 {[%clk 0:00:07]} 31. Nxb7 {[%clk 0:02:06]}  Nxf6 {[%clk 0:00:06]} 32. gxf6 {[%clk 0:02:07]}  Re6 {[%clk 0:00:07]} 33. Na5 {[%clk 0:01:50]}  Rxf6 {[%clk 0:00:06]} 34. Rg3 {[%clk 0:01:51]}  Kg7 {[%clk 0:00:05]} 35. a4 {[%clk 0:01:50]} 1-0


[Site "https://www.chess.com"]

[Event "Titled Tuesday Blitz March 15 Early 2022"]
[White "Milosevic, Milos"]
[Black "Ismayil, Malak"]
[WhiteFideId "964875"]
[BlackFideId "13412604"]
[WhiteElo "2237"]
[BlackElo "1879"]
[Result "0-1"]
[Round "10"]
[TimeControl "180+1"]
[Date "2022.03.15"]
[WhiteClock "0:00:02"]
[BlackClock "0:01:27"]

1. e4 {[%clk 0:00:12]}  e5 {[%clk 0:02:51]} 2. Nf3 {[%clk 0:00:12]}  Nc6 {[%clk 0:02:51]} 3. Bb5 {[%clk 0:00:13]}  a6 {[%clk 0:02:49]} 4. Ba4 {[%clk 0:00:12]}  Nf6 {[%clk 0:02:46]} 5. d3 {[%clk 0:00:12]}  b5 {[%clk 0:02:45]} 6. Bb3 {[%clk 0:00:12]}  Be7 {[%clk 0:02:46]} 7. Bg5 {[%clk 0:00:11]}  O-O {[%clk 0:02:45]} 8. Nc3 {[%clk 0:00:11]}  d6 {[%clk 0:02:41]} 9. Bxf6 {[%clk 0:00:11]}  Bxf6 {[%clk 0:02:34]} 10. Nd5 {[%clk 0:00:10]}  Na5 {[%clk 0:02:29]} 11. Nxf6+ {[%clk 0:00:08]}  Qxf6 {[%clk 0:02:30]} 12. Qd2 {[%clk 0:00:09]}  Nc6 {[%clk 0:02:21]} 13. Bd5 {[%clk 0:00:08]}  Bd7 {[%clk 0:02:20]} 14. Qg5 {[%clk 0:00:08]}  Qxg5 {[%clk 0:02:12]} 15. Nxg5 {[%clk 0:00:09]}  h6 {[%clk 0:02:12]} 16. Nf3 {[%clk 0:00:08]}  Rab8 {[%clk 0:02:10]} 17. Bxc6 {[%clk 0:00:07]}  Bxc6 {[%clk 0:02:10]} 18. Kd2 {[%clk 0:00:07]}  f5 {[%clk 0:02:09]} 19. exf5 {[%clk 0:00:06]}  Rxf5 {[%clk 0:02:03]} 20. Ke2 {[%clk 0:00:06]}  Rbf8 {[%clk 0:02:01]} 21. Rhf1 {[%clk 0:00:04]}  Bxf3+ {[%clk 0:01:59]} 22. gxf3 {[%clk 0:00:04]}  Rxf3 {[%clk 0:02:00]} 23. a4 {[%clk 0:00:05]}  b4 {[%clk 0:01:59]} 24. c3 {[%clk 0:00:04]}  bxc3 {[%clk 0:01:55]} 25. bxc3 {[%clk 0:00:05]}  R3f4 {[%clk 0:01:48]} 26. a5 {[%clk 0:00:03]}  Rb8 {[%clk 0:01:45]} 27. Rab1 {[%clk 0:00:02]}  Rxb1 {[%clk 0:01:44]} 28. Rxb1 {[%clk 0:00:03]}  Ra4 {[%clk 0:01:44]} 29. Rb7 {[%clk 0:00:03]}  Rxa5 {[%clk 0:01:37]} 30. Rxc7 {[%clk 0:00:03]}  Kh7 {[%clk 0:01:33]} 31. Rc6 {[%clk 0:00:02]}  d5 {[%clk 0:01:31]} 32. Ke3 {[%clk 0:00:02]}  Ra1 {[%clk 0:01:27]} 0-1


[Site "https://www.chess.com"]

[Event "Titled Tuesday Blitz March 15 Early 2022"]
[White "Mitusov, Semen"]
[Black "Fiorito, Fabian"]
[WhiteFideId "14151049"]
[BlackFideId "100200"]
[WhiteElo "2265"]
[BlackElo "2395"]
[Result "1-0"]
[Round "10"]
[TimeControl "180+1"]
[Date "2022.03.15"]
[WhiteClock "0:00:13"]
[BlackClock "0:00:05"]

1. e4 {[%clk 0:03:00]}  c6 {[%clk 0:02:59]} 2. Nf3 {[%clk 0:03:00]}  d5 {[%clk 0:03:00]} 3. Nc3 {[%clk 0:03:00]}  Bg4 {[%clk 0:02:59]} 4. h3 {[%clk 0:03:00]}  Bxf3 {[%clk 0:02:59]} 5. Qxf3 {[%clk 0:03:00]}  Nf6 {[%clk 0:03:00]} 6. d3 {[%clk 0:02:55]}  e6 {[%clk 0:02:59]} 7. g3 {[%clk 0:02:53]}  Nbd7 {[%clk 0:02:57]} 8. Bg2 {[%clk 0:02:52]}  Bb4 {[%clk 0:02:58]} 9. Bd2 {[%clk 0:02:52]}  d4 {[%clk 0:02:53]} 10. Nb1 {[%clk 0:02:50]}  Bxd2+ {[%clk 0:02:53]} 11. Nxd2 {[%clk 0:02:51]}  O-O {[%clk 0:02:53]} 12. O-O {[%clk 0:02:50]}  e5 {[%clk 0:02:49]} 13. Qe2 {[%clk 0:02:48]}  g6 {[%clk 0:02:34]} 14. f4 {[%clk 0:02:39]}  Nh5 {[%clk 0:02:26]} 15. Rf3 {[%clk 0:02:37]}  f5 {[%clk 0:02:14]} 16. Raf1 {[%clk 0:02:36]}  Qc7 {[%clk 0:02:00]} 17. exf5 {[%clk 0:02:31]}  exf4 {[%clk 0:01:58]} 18. fxg6 {[%clk 0:02:11]}  hxg6 {[%clk 0:01:42]} 19. gxf4 {[%clk 0:02:02]}  Rae8 {[%clk 0:01:40]} 20. Qf2 {[%clk 0:01:59]}  Kg7 {[%clk 0:01:35]} 21. Ne4 {[%clk 0:01:58]}  Ndf6 {[%clk 0:01:33]} 22. Qxd4 {[%clk 0:01:57]}  Kh6 {[%clk 0:00:59]} 23. f5 {[%clk 0:01:42]}  Nxe4 {[%clk 0:00:57]} 24. dxe4 {[%clk 0:01:39]}  g5 {[%clk 0:00:54]} 25. f6 {[%clk 0:01:39]}  Nf4 {[%clk 0:00:45]} 26. Rxf4 {[%clk 0:01:30]}  gxf4 {[%clk 0:00:46]} 27. e5 {[%clk 0:01:31]}  Qxe5 {[%clk 0:00:45]} 28. Qxf4+ {[%clk 0:01:09]}  Qxf4 {[%clk 0:00:44]} 29. Rxf4 {[%clk 0:01:10]}  Re6 {[%clk 0:00:43]} 30. f7 {[%clk 0:00:55]}  Re7 {[%clk 0:00:43]} 31. Be4 {[%clk 0:00:53]}  Rfxf7 {[%clk 0:00:42]} 32. Rh4+ {[%clk 0:00:52]}  Kg5 {[%clk 0:00:41]} 33. Rg4+ {[%clk 0:00:52]}  Kf6 {[%clk 0:00:41]} 34. Kf2 {[%clk 0:00:51]}  Rg7 {[%clk 0:00:34]} 35. Rf4+ {[%clk 0:00:46]}  Ke5 {[%clk 0:00:34]} 36. Ke3 {[%clk 0:00:43]}  Rg3+ {[%clk 0:00:31]} 37. Bf3 {[%clk 0:00:43]}  Rxh3 {[%clk 0:00:25]} 38. c4 {[%clk 0:00:40]}  Re6 {[%clk 0:00:20]} 39. c5 {[%clk 0:00:36]}  Rf6 {[%clk 0:00:18]} 40. Re4+ {[%clk 0:00:37]}  Kf5 {[%clk 0:00:15]} 41. Ke2 {[%clk 0:00:32]}  Kg5 {[%clk 0:00:14]} 42. Rg4+ {[%clk 0:00:32]}  Kh6 {[%clk 0:00:15]} 43. Be4 {[%clk 0:00:30]}  Rh2+ {[%clk 0:00:13]} 44. Ke3 {[%clk 0:00:30]}  Rxb2 {[%clk 0:00:13]} 45. Kd4 {[%clk 0:00:26]}  Rxa2 {[%clk 0:00:12]} 46. Ke5 {[%clk 0:00:26]}  Raf2 {[%clk 0:00:13]} 47. Rg8 {[%clk 0:00:25]}  a5 {[%clk 0:00:12]} 48. Rh8+ {[%clk 0:00:24]}  Kg7 {[%clk 0:00:12]} 49. Rh7+ {[%clk 0:00:25]}  Kf8 {[%clk 0:00:13]} 50. Rxb7 {[%clk 0:00:25]}  Rf7 {[%clk 0:00:11]} 51. Rb6 {[%clk 0:00:24]}  Re7+ {[%clk 0:00:11]} 52. Kd4 {[%clk 0:00:24]}  Rd2+ {[%clk 0:00:10]} 53. Kc3 {[%clk 0:00:22]}  Ra2 {[%clk 0:00:08]} 54. Bxc6 {[%clk 0:00:21]}  a4 {[%clk 0:00:08]} 55. Rb8+ {[%clk 0:00:19]}  Kf7 {[%clk 0:00:08]} 56. Bd5+ {[%clk 0:00:19]}  Kg7 {[%clk 0:00:04]} 57. Bxa2 {[%clk 0:00:20]}  Rc7 {[%clk 0:00:05]} 58. Kb4 {[%clk 0:00:19]}  a3 {[%clk 0:00:06]} 59. Ra8 {[%clk 0:00:15]}  Rf7 {[%clk 0:00:05]} 60. Bxf7 {[%clk 0:00:13]} 1-0


[Site "https://www.chess.com"]